[Event "Azerbaijan Men Championship 2024"]
[Site "Baku"]
[Date "2024.04.12"]
[Round "2.1"]
[White "Samadov, Read"]
[Black "Suleymanli, Aydin"]
[Result "1/2-1/2"]
[ECO "E05"]
[WhiteElo "2502"]
[BlackElo "2607"]
[Annotator "TA"]
[PlyCount "72"]
[EventDate "2024.04.11"]
[EventType "swiss"]
[EventCountry "AZE"]
[SourceTitle "playchess.com"]
[Source "ChessBase"]
[SourceQuality "1"]
[TimeControl "40/5400+30:1800+30"]

{[%evp 23,72,9,4,7,0,13,13,6,42,35,26,0,0,0,0,0,0,0,0,0,0,0,0,0,0,0,0,0,0,0,0,0,0,0,0,0,0,0,0,0,0,0,0,0,0,0,0,0,0,0,0]} 1. d4 {[%emt 0:00:03]} Nf6 {[%emt 0:00:09]} 2. c4 {[%emt 0:00:07]} e6 {[%emt 0:00:04]} 3. Nf3 {[%emt 0:00:08]} d5 {[%emt 0:00:06]} 4. g3 {[%emt 0:00:10]} Be7 {[%emt 0:00:05]} 5. Bg2 {[%emt 0:00:10]} O-O {[%emt 0:00:08]} 6. O-O {[%emt 0:00:06]} dxc4 {[%emt 0:00:07]} 7. Qc2 {[%emt 0:00:08]} a6 {[%emt 0:00:04]} 8. a4 {[%emt 0:00:13]} Bd7 {[%emt 0:00:21]} 9. Qxc4 {[%emt 0:00:36]} Bc6 {[%emt 0:00:07]} 10. Bg5 {[%emt 0:00:25]} Bd5 {[%emt 0:00:04]} 11. Qc2 {[%emt 0:01:08]} Be4 {[%emt 0:00:05]} 12. Qc1 {[%emt 0:00:58]} Nc6 {[%emt 0:00:08]} 13. Nbd2 {[%emt 0:04:42][%cal Bb1d2,Bd2f1,Bf1e3,Be3f5][%mdl 32] [#] Strongly threatening Bxf6.} Nxd4 {[%emt 0:00:14]} 14. Nxd4 {[%emt 0:00:23]} Bxg2 {[%emt 0:00:06]} 15. Nxe6 {[%emt 0:00:31]} Qd6 {[%emt 0:00:26]} 16. Nxf8 {[%emt 0:11:29] A dynamic duo of knights.} Bxf1 {[%emt 0:00:10]} 17. Nxf1 {[%emt 0:02:52][%cal Of8h7]} Rxf8 {[%emt 0:01:12] The position is equal.} 18. Ne3 {[%emt 0:06:47]} Ne4 {[%emt 0:05:29]} 19. Nf5 {[%emt 0:09:07]} Bxg5 {[%emt 0:00:08]} 20. Nxd6 {[%emt 0:00:07]} Bxc1 {[%emt 0:00:03]} 21. Nxe4 {[%emt 0:00:05]} Bxb2 $11 {[%emt 0:00:06][%mdl 4096] Endgame. KRB-KRN} 22. Rb1 {[%emt 0:00:09]} Re8 {[%emt 0:00:05]} 23. Rxb2 {[%emt 0:00:52]} Rxe4 {[%emt 0:00:05]} 24. Rxb7 {[%emt 0:00:07] [#] White threatens Rb8+ and mate. KR-KR} g6 {[%emt 0:00:20]} 25. Rxc7 {[%emt 0:00:50]} Rxa4 {[%emt 0:00:43]} 26. Ra7 {[%emt 0:01:23]} a5 {[%emt 0:00:10]} 27. Kg2 {[%emt 0:00:52]} Ra2 {[%emt 0:01:01]} 28. h4 {[%emt 0:01:22]} Rxe2 {[%emt 0:00:05]} 29. Rxa5 {[%emt 0:00:03]} h5 {[%emt 0:00:04]} 30. Ra6 {[%emt 0:00:12]} Kg7 {[%emt 0:00:07]} 31. Rb6 {[%emt 0:00:08]} Rd2 {[%emt 0:00:06]} 32. Ra6 {[%emt 0:00:04]} Re2 {[%emt 0:00:08]} 33. Rb6 {[%emt 0:00:03]} Rd2 {[%emt 0:00:04]} 34. Ra6 {[%emt 0:00:04]} Re2 {[%emt 0:00:03]} 35. Rb6 {[%emt 0:00:11]} Rd2 {[%emt 0:00:05]} 36. Ra6 {[%emt 0:00:01]} Re2 {[%emt 1:36:02] Weighted Error Value: White=0.04 (flawless) /Black=0.05 (flawless) .  Inaccurate:     	White=1     	Black=1      OK:         	White=10    	Black=14     Best:        	White=1     	Black=3} 1/2-1/2

[Event "Azerbaijan Men Championship 2024"]
[Site "Baku"]
[Date "2024.04.12"]
[Round "2.2"]
[White "Muradli, Mahammad"]
[Black "Babazada, Khazar"]
[Result "1/2-1/2"]
[ECO "E04"]
[WhiteElo "2555"]
[BlackElo "2474"]
[Annotator "TA"]
[PlyCount "153"]
[EventDate "2024.04.11"]
[EventType "swiss"]
[EventCountry "AZE"]
[SourceTitle "playchess.com"]
[Source "ChessBase"]
[SourceQuality "1"]
[TimeControl "40/5400+30:1800+30"]

{[%evp 70,153,3,4,4,2,15,3,3,0,0,0,0,0,0,0,0,0,0,0,7,0,0,0,0,0,0,-8,-8,-8,-8,-8,-8,-8,-8,-8,-8,-8,-8,-12,-8,-10,-12,-41,-6,-46,-8,-21,-21,-21,-22,-28,-8,-8,0,-25,-12,-12,-20,-12,-8,-8,-8,-8,-8,-8,-8,-8,-8,-8,0,0,0,0,0,0,0,0,0,0,0,0,0,0,0,0]} 1. Nf3 {[%emt 0:07:26]} Nf6 {[%emt 0:01:00]} 2. c4 {[%emt 0:00:06]} e6 {[%emt 0:00:04]} 3. g3 {[%emt 0:00:07]} d5 {[%emt 0:00:05]} 4. d4 {[%emt 0:00:07]} dxc4 {[%emt 0:00:05]} 5. Bg2 {[%emt 0:00:06]} c6 {[%emt 0:00:04]} 6. O-O {[%emt 0:07:12]} b5 {[%emt 0:00:22]} 7. Ne5 {[%emt 0:13:24] E04: Open Catalan: 5 Nf3.} Bb7 {[%emt 0:01:04]} 8. b3 {[%emt 0:00:12]} cxb3 {[%emt 0:02:42]} 9. axb3 {[%emt 0:00:07]} Be7 {[%emt 0:18:03]} 10. Bb2 {[%emt 0:03:13]} O-O {[%emt 0:08:43]} 11. Nd2 {[%emt 0:01:35]} a5 $146 {[%emt 0:01:23]} ({Predecessor:} 11... Qb6 12. Qc2 Nfd7 13. Nd3 a5 14. Ne4 Na6 15. Rfc1 Rfd8 16. h4 h6 17. e3 Bf8 {0-1 Zhukova,N (2310)-Zwirs,N (2442) Maia op 7th 2023 (3)}) 12. Qc2 {[%emt 0:04:23]} Qc7 {[%emt 0:04:45]} 13. Rfc1 {[%emt 0:02:00]} c5 {[%emt 0:06:46]} 14. Bxb7 {[%emt 0:04:01]} Qxb7 {[%emt 0:00:50]} 15. dxc5 {[%emt 0:00:05]} Nc6 {[%emt 0:00:09]} 16. Nd3 {[%emt 0:18:50]} Rfd8 {[%emt 0:01:57]} 17. Nf3 {[%emt 0:00:47]} Rac8 {[%emt 0:01:37]} 18. Nfe5 {[%emt 0:19:33]} Nxe5 {[%emt 0:21:35]} 19. Bxe5 {[%emt 0:00:26]} Nd5 {[%emt 0:12:19]} 20. c6 {[%emt 0:04:56]} Qb6 {[%emt 0:01:12]} 21. e4 {[%emt 0:03:42]} Nf6 {[%emt 0:00:53]} 22. c7 {[%emt 0:04:41]} Re8 {[%emt 0:11:36]} 23. Qc6 {[%emt 0:02:05]} Qxc6 {[%emt 0:00:26]} 24. Rxc6 {[%emt 0:00:03]} Nxe4 {[%emt 0:00:21]} 25. Rxa5 {[%emt 0:00:23]} b4 {[%emt 0:00:14]} 26. Rb5 {[%emt 0:01:04]} f6 {[%emt 0:00:24]} 27. Bf4 {[%emt 0:01:11]} Nc3 {[%emt 0:02:53]} 28. Rb7 {[%emt 0:00:02]} Ne2+ {[%emt 0:00:19]} 29. Kg2 {[%emt 0:01:15]} Nd4 {[%emt 0:00:05]} 30. Rcb6 {[%emt 0:00:18]} e5 {[%emt 0:00:59]} 31. Be3 {[%emt 0:01:55]} Nxb3 {[%emt 0:00:05]} 32. Nxb4 {[%emt 0:00:43]} Bxb4 {[%emt 0:02:05]} 33. Rxb4 {[%emt 0:00:11]} Na5 {[%emt 0:00:18]} 34. Rb8 {[%emt 0:00:46]} Kf7 {[%emt 0:00:07]} 35. Ra4 {[%emt 0:00:33]} Nc6 {[%emt 0:00:20]} 36. Rb7 {[%emt 0:00:07]} Ke6 {[%emt 0:01:15]} 37. Bb6 {[%emt 0:00:19]} Kd7 {[%emt 0:00:45]} 38. Rc4 {[%emt 0:00:28]} Re6 {[%emt 0:00:16]} 39. Kf3 {[%emt 0:00:58]} Rd6 {[%emt 0:00:03]} 40. Ke3 {[%emt 0:00:00]} Ne7 {[%emt 0:00:00]} 41. Ke4 {[%emt 0:03:54]} Nc6 {[%emt 0:06:07]} 42. Ke3 {[%emt 0:04:03]} Ne7 {[%emt 0:00:25]} 43. Ke2 {[%emt 0:00:12]} Nc6 {[%emt 0:01:20]} 44. Rh4 {[%emt 0:03:04]} h6 {[%emt 0:00:23]} 45. Rg4 {[%emt 0:00:06]} g5 {[%emt 0:00:08]} 46. Ra4 {[%emt 0:02:45]} h5 {[%emt 0:01:38]} 47. Ra2 {[%emt 0:05:31]} Nb4 {[%emt 0:06:26]} 48. Rb2 {[%emt 0:03:20]} Nd5 {[%emt 0:04:04]} 49. Ba5 {[%emt 0:00:42]} Nxc7 {[%emt 0:02:19]} 50. Rc2 {[%emt 0:00:49]} Rc6 {[%emt 0:00:08]} 51. Rxc6 {[%emt 0:00:11]} Kxc6 {[%emt 0:00:02]} 52. Rb6+ {[%emt 0:00:07]} Kd5 {[%emt 0:00:02]} 53. Rxf6 {[%emt 0:00:07]} Ne6 {[%emt 0:00:02]} 54. Kf1 {[%emt 0:06:23]} g4 {[%emt 0:02:11]} 55. Bd2 {[%emt 0:01:10]} Nd4 {[%emt 0:00:18]} 56. Kg2 {[%emt 0:00:29]} Ke4 {[%emt 0:03:15]} 57. Be3 {[%emt 0:03:41]} Nf3 {[%emt 0:00:23]} 58. Ra6 {[%emt 0:00:10]} Ne1+ {[%emt 0:00:25]} 59. Kf1 {[%emt 0:00:14]} Nc2 {[%emt 0:00:10]} 60. Bd2 {[%emt 0:01:38]} Rd8 {[%emt 0:01:28]} 61. Bc3 $1 {[%emt 0:00:15]} Rc8 {[%emt 0:02:39]} 62. Bd2 {[%emt 0:02:42]} Rb8 {[%emt 0:01:39]} 63. Kg2 $1 {[%emt 0:00:15]} Rb1 {[%emt 0:00:52]} 64. Rc6 $1 {[%emt 0:00:49]} Nd4 {[%emt 0:01:31]} 65. Rc1 {[%emt 0:00:20]} Rxc1 {[%emt 0:01:24]} 66. Bxc1 {[%emt 0:00:01]} Nf3 {[%emt 0:00:36]} 67. Be3 {[%emt 0:00:11]} Ne1+ {[%emt 0:00:12]} 68. Kf1 {[%emt 0:00:05]} Nc2 {[%emt 0:00:04]} 69. Ba7 {[%emt 0:00:22]} Kf3 {[%emt 0:00:05]} 70. Bb8 {[%emt 0:00:20]} e4 {[%emt 0:00:06]} 71. Ba7 {[%emt 0:00:03]} Nb4 {[%emt 0:00:17]} 72. Be3 {[%emt 0:00:17]} Nc6 {[%emt 0:00:05]} 73. Bc5 {[%emt 0:00:10]} Ne5 {[%emt 0:00:03]} 74. Be3 {[%emt 0:00:07]} Nc4 {[%emt 0:00:10]} 75. Bc1 {[%emt 0:00:09]} Nd6 {[%emt 0:00:19]} 76. Be3 {[%emt 0:00:22]} Nf5 {[%emt 0:00:07]} 77. Bg5 {[%emt 0:00:07]} 1/2-1/2

[Event "Azerbaijan Men Championship 2024"]
[Site "Baku"]
[Date "2024.04.12"]
[Round "2.3"]
[White "Iskandarov, Misratdin"]
[Black "Manafov, Vugar"]
[Result "0-1"]
[ECO "B42"]
[WhiteElo "2538"]
[BlackElo "2424"]
[Annotator "TA"]
[PlyCount "90"]
[EventDate "2024.04.11"]
[EventType "swiss"]
[EventCountry "AZE"]
[SourceTitle "playchess.com"]
[Source "ChessBase"]
[SourceQuality "1"]
[TimeControl "40/5400+30:1800+30"]

{[%evp 25,90,58,64,57,65,62,63,52,72,69,68,19,50,51,70,14,25,0,0,-10,-15,-18,0,-55,-59,-20,-29,-55,-10,-58,-21,-27,-20,-46,-30,-49,-64,-40,0,0,0,0,0,0,0,0,0,-28,0,0,0,-2,0,-97,-96,-108,0,0,0,-97,-90,-81,-86,-80,-87,-80,-81]} 1. e4 {[%emt 0:00:06]} c5 {[%emt 0:00:15]} 2. Nf3 {[%emt 0:00:12]} e6 {[%emt 0:00:19]} 3. d4 {[%emt 0:00:29]} cxd4 {[%emt 0:00:18]} 4. Nxd4 {[%emt 0:00:08]} a6 {[%emt 0:00:08]} 5. Bd3 {[%emt 0:00:39]} g6 {[%emt 0:00:29]} 6. O-O {[%emt 0:00:48]} Bg7 {[%emt 0:00:14]} 7. Be3 {[%emt 0:00:10]} Nf6 {[%emt 0:01:28]} 8. c4 {[%emt 0:00:53]} O-O {[%emt 0:01:38]} 9. Nc3 {[%emt 0:00:35]} d6 {[%emt 0:00:35]} 10. Qe2 {[%emt 0:01:17]} Qc7 {[%emt 0:03:55]} 11. Rac1 {[%emt 0:00:44]} b6 {[%emt 0:00:51]} 12. f3 {[%emt 1:30:29]} Bb7 {[%emt 0:01:57]} 13. Rfd1 {[%emt 0:00:00]} Nbd7 {[%emt 0:00:24]} 14. Qd2 {[%emt 0:00:00]} Rfe8 {[%emt 0:03:21]} 15. Bf1 {[%emt 0:00:00]} Rac8 {[%emt 0:09:24]} 16. b4 {[%emt 0:00:00] White is slightly better.} Qb8 {[%emt 0:03:08]} 17. Na4 {[%emt 0:00:00]} Bf8 {[%emt 0:06:07]} 18. Nb3 {[%emt 0:00:00]} (18. Bg5 $14) 18... Bc6 {[%emt 0:04:48]} 19. Nc3 {[%emt 0:00:00]} Ba8 {[%emt 0:06:41]} 20. Bf4 {[%emt 0:00:00]} (20. Bg5 $14) 20... Ne5 $11 {[%emt 0:04:31]} 21. c5 {[%emt 0:00:00]} dxc5 {[%emt 0:09:34]} 22. Bxa6 {[%emt 0:00:00]} Rcd8 {[%emt 0:03:20]} 23. Qe2 {[%emt 0:00:00]} Rxd1+ {[%emt 0:05:52]} 24. Rxd1 {[%emt 0:00:00]} ({Better is} 24. Nxd1 $11 cxb4 25. Nf2) 24... Nh5 $15 {[%emt 0:00:55]} 25. Be3 {[%emt 0:00:00]} c4 {[%emt 0:02:21]} 26. Nd4 {[%emt 0:05:40]} (26. Bxc4 $2 {too greedy.} Rc8 27. Ba6 Rxc3 $19) 26... Bxb4 {[%emt 0:00:32]} 27. Qb2 {[%emt 0:00:38]} (27. Na4 $11 {was preferrable.}) 27... Bd6 {[%emt 0:02:22]} 28. Nde2 {[%emt 0:00:47]} Bc7 {[%emt 0:04:21]} 29. Qb4 {[%emt 0:00:07][%cal Oh2h3]} (29. Kh1 {simplifies} Bb7 30. Bxb7 Qxb7 31. a4) 29... Nd3 {[%emt 0:00:39]} 30. Qb5 {[%emt 0:00:51]} Bxh2+ {[%emt 0:03:24]} 31. Kf1 $1 {[%emt 0:00:01]} Bc7 {[%emt 0:01:00]} (31... Nc5 $5) 32. Rb1 $1 {[%emt 0:00:11]} Qd8 {[%emt 0:08:15]} 33. Bxb6 {[%emt 0:00:46]} Bxb6 {[%emt 0:01:03]} 34. Qxb6 {[%emt 0:00:01]} Qg5 {[%emt 0:01:05]} 35. Bxc4 {[%emt 0:01:25]} Ndf4 {[%emt 0:00:22]} 36. Qf2 {[%emt 0:00:56]} Rc8 {[%emt 0:00:46]} 37. Ba6 {[%emt 0:00:08]} Rd8 {[%emt 0:00:31]} 38. a4 {[%emt 0:00:43]} Kg7 {[%emt 0:03:25]} 39. Rd1 {[%emt 0:00:28] [#] Dodges Rd2} (39. Nxf4 $11 Nxf4 40. Rd1) 39... Nxe2 $1 $17 {[%emt 0:02:17]} 40. Bxe2 {[%emt 0:00:00]} Ng3+ {[%emt 0:00:00]} (40... Rc8 $17 {[%cal Oe6e5] And now ...e5! would win.} 41. Bb5 Nf4 (41... Rxc3 42. Qd4+ Qf6 43. e5 $17)) 41. Kg1 $11 {[%emt 0:07:01]} Rc8 {[%emt 0:01:11]} 42. Rd3 {[%emt 0:08:53]} (42. Ba6 $11 {keeps the balance.} Rc7 (42... Rxc3 43. Qd4+ Qf6 44. e5 $16) 43. Ne2 Nxe2+ 44. Bxe2) 42... Qe5 $17 {[%emt 0:03:39] Black is much more active. Black is better.} 43. Bd1 {[%emt 0:03:20] Threatens to win with f4.} Rxc3 {[%emt 0:11:43]} 44. Rxc3 {[%emt 0:00:05]} Qxc3 {[%emt 0:01:12]} 45. Qxg3 {[%emt 0:00:07] [#]} Bxe4 $1 {[%emt 0:22:40] Weighted Error Value: White=0.19 (very precise) /Black=0.10 (very precise) .  Mistake:       	White=6     	Black=1      Inaccurate:     	White=2     	Black=4      OK:         	White=10    	Black=9      Best:        	White=3     	Black=4      Strong:       	White=2     	Black=2} 0-1

[Event "Azerbaijan Men Championship 2024"]
[Site "Baku"]
[Date "2024.04.12"]
[Round "2.4"]
[White "Rustamov, Rustam"]
[Black "Guliyev, Namig"]
[Result "1/2-1/2"]
[ECO "B58"]
[WhiteElo "2261"]
[BlackElo "2509"]
[Annotator "RC"]
[PlyCount "190"]
[EventDate "2024.04.11"]
[EventType "swiss"]
[EventCountry "AZE"]
[SourceTitle "playchess.com"]
[Source "ChessBase"]
[SourceQuality "1"]
[TimeControl "40/5400+30:1800+30"]

1. e4 {[%emt 0:00:23]} c5 {[%emt 0:00:18]} 2. Nf3 {[%emt 0:00:24]} d6 {[%emt 0:00:07]} 3. d4 {[%emt 0:00:18]} cxd4 {[%emt 0:00:14]} 4. Nxd4 {[%emt 0:00:08]} Nf6 {[%emt 0:00:09]} 5. Nc3 {[%emt 0:00:05]} Nc6 {[%emt 0:02:56]} 6. Be2 {[%emt 0:00:35]} e5 {[%emt 0:04:32]} 7. Nf3 {[%emt 0:00:32]} h6 {[%emt 0:00:15]} 8. O-O {[%emt 0:00:40]} Be7 {[%emt 0:00:08]} 9. h3 {[%emt 0:00:10]} Be6 {[%emt 0:04:01]} 10. Nh2 {[%emt 0:00:38]} Nd4 {[%emt 0:07:15]} 11. Be3 {[%emt 0:03:45]} Nxe2+ {[%emt 0:01:27]} 12. Qxe2 {[%emt 0:00:11]} O-O {[%emt 0:00:39]} 13. Ng4 {[%emt 0:08:19]} Nxg4 {[%emt 0:01:55]} 14. hxg4 {[%emt 0:01:34]} Qd7 {[%emt 0:01:59]} 15. f3 {[%emt 0:00:56]} Rfc8 {[%emt 0:01:32]} 16. Rfd1 {[%emt 0:03:51]} Bc4 {[%emt 0:10:32]} 17. Qf2 {[%emt 0:00:43]} b5 {[%emt 0:00:07]} 18. Nd5 {[%emt 0:11:10]} Bxd5 {[%emt 0:06:50]} 19. Rxd5 {[%emt 0:00:08]} Rc4 {[%emt 0:00:06]} 20. c3 {[%emt 0:01:14]} a5 {[%emt 0:01:14]} 21. a3 {[%emt 0:00:33]} Qb7 {[%emt 0:03:19]} 22. Qe2 {[%emt 0:02:52]} Rac8 {[%emt 0:02:47]} 23. Rad1 {[%emt 0:02:15]} b4 {[%emt 0:01:15]} 24. axb4 {[%emt 0:04:46]} axb4 {[%emt 0:00:16]} 25. cxb4 {[%emt 0:00:40]} Qxb4 {[%emt 0:03:24]} 26. R5d2 {[%emt 0:00:33]} Qb3 {[%emt 0:02:07]} 27. Qd3 {[%emt 0:05:23]} Qb8 {[%emt 0:00:13]} 28. Kh2 {[%emt 0:08:46]} Rb4 {[%emt 0:00:22]} 29. Qa6 {[%emt 0:01:02]} Rc7 {[%emt 0:01:37]} 30. Ra1 {[%emt 0:08:23]} Rxb2 {[%emt 0:04:53]} 31. Qa8 {[%emt 0:01:02]} Rbb7 {[%emt 0:01:48]} 32. Qxb8+ {[%emt 0:02:06]} Rxb8 {[%emt 0:00:10]} 33. Ra7 {[%emt 0:00:22]} Rxa7 {[%emt 0:00:44]} 34. Bxa7 {[%emt 0:00:05]} Rb3 {[%emt 0:00:14]} 35. Bf2 {[%emt 0:00:23]} f6 {[%emt 0:02:16]} 36. Ra2 {[%emt 0:00:18]} Kf7 {[%emt 0:00:12]} 37. Ra7 {[%emt 0:00:31]} Ke6 {[%emt 0:00:19]} 38. Bh4 {[%emt 0:00:41]} Rb1 {[%emt 0:02:51]} 39. Bf2 {[%emt 0:02:16]} Rd1 {[%emt 0:01:12]} 40. Ra6 {[%emt 0:00:00]} g6 {[%emt 0:00:00]} 41. Bh4 {[%emt 0:03:21]} Rf1 {[%emt 0:02:41]} 42. Ra2 {[%emt 0:04:45]} Bd8 {[%emt 0:02:43]} 43. Bf2 {[%emt 0:01:08]} h5 {[%emt 0:01:09]} 44. gxh5 {[%emt 0:00:45]} gxh5 {[%emt 0:00:05]} 45. g4 {[%emt 0:01:20]} hxg4 {[%emt 0:00:40]} 46. Kg2 {[%emt 0:01:04]} Rb1 {[%emt 0:02:00]} 47. fxg4 {[%emt 0:01:57]} Rb5 {[%emt 0:00:24]} 48. Ra8 {[%emt 0:06:38]} Ba5 {[%emt 0:00:19]} 49. Bh4 {[%emt 0:00:27]} Rb2+ {[%emt 0:04:16]} 50. Kf3 {[%emt 0:00:28]} Rb3+ {[%emt 0:02:36]} 51. Kg2 {[%emt 0:01:12]} Bd2 {[%emt 0:08:26]} 52. Rf8 {[%emt 0:00:46]} Bg5 {[%emt 0:00:06]} 53. Bxg5 {[%emt 0:00:15]} fxg5 {[%emt 0:00:05]} 54. Kf2 {[%emt 0:00:30]} Rb4 {[%emt 0:01:26]} 55. Kf3 {[%emt 0:00:27]} Rb3+ {[%emt 0:02:53]} 56. Kf2 {[%emt 0:00:14]} Rb7 {[%emt 0:00:07]} 57. Rg8 {[%emt 0:00:38]} Kf6 {[%emt 0:00:15]} 58. Rd8 {[%emt 0:00:43]} Rb2+ {[%emt 0:00:45]} 59. Kf3 {[%emt 0:00:19]} Rd2 {[%emt 0:00:39]} 60. Ke3 {[%emt 0:00:27]} Rd1 {[%emt 0:00:27]} 61. Rf8+ {[%emt 0:00:17]} Kg7 {[%emt 0:00:10]} 62. Rd8 {[%emt 0:00:05]} Rd4 {[%emt 0:00:19]} 63. Kf3 {[%emt 0:02:24]} Kf7 {[%emt 0:00:21]} 64. Rd7+ {[%emt 0:01:20]} Kf6 {[%emt 0:02:09]} 65. Rd8 {[%emt 0:01:36]} Rd1 {[%emt 0:01:15]} 66. Ke3 {[%emt 0:01:32]} Kf7 {[%emt 0:03:38]} 67. Rd7+ {[%emt 0:01:58]} Ke6 {[%emt 0:01:57]} 68. Rg7 {[%emt 0:00:36]} Kf6 {[%emt 0:01:18]} 69. Rd7 {[%emt 0:00:15]} Kg6 {[%emt 0:00:05]} 70. Ke2 {[%emt 0:00:57]} Rd4 {[%emt 0:00:07]} 71. Ke3 {[%emt 0:00:38]} Kf6 {[%emt 0:00:08]} 72. Kf3 {[%emt 0:00:27]} Rd3+ {[%emt 0:00:37]} 73. Kf2 {[%emt 0:00:47]} Rd1 {[%emt 0:00:11]} 74. Kf3 {[%emt 0:00:35]} Rd4 {[%emt 0:05:20]} 75. Rd8 {[%emt 0:01:14]} Kf7 {[%emt 0:04:07]} 76. Rd7+ {[%emt 0:01:51]} Ke6 {[%emt 0:00:58]} 77. Rg7 {[%emt 0:01:23]} Rd3+ {[%emt 0:00:44]} 78. Ke2 {[%emt 0:00:27]} Kf6 {[%emt 0:00:25]} 79. Rd7 {[%emt 0:00:48]} Rg3 {[%emt 0:00:43]} 80. Rxd6+ {[%emt 0:00:41]} Kf7 {[%emt 0:00:19]} 81. Rd5 {[%emt 0:03:12]} Ke6 {[%emt 0:00:27]} 82. Ra5 {[%emt 0:00:25]} Rxg4 {[%emt 0:00:09]} 83. Ra6+ {[%emt 0:00:22]} Kf7 {[%emt 0:00:11]} 84. Ke3 {[%emt 0:00:50]} Rg3+ {[%emt 0:00:22]} 85. Kf2 {[%emt 0:00:10]} Rd3 {[%emt 0:00:30]} 86. Ke2 {[%emt 0:00:51]} Rh3 {[%emt 0:01:23]} 87. Ra7+ {[%emt 0:00:47]} Ke6 {[%emt 0:00:07]} 88. Ra6+ {[%emt 0:00:47]} Ke7 {[%emt 0:00:05]} 89. Ra7+ {[%emt 0:00:16]} Kd6 {[%emt 0:00:27]} 90. Ra6+ {[%emt 0:00:12]} Ke7 {[%emt 0:01:02]} 91. Ra5 {[%emt 0:00:06]} Kf6 {[%emt 0:00:05]} 92. Ra6+ {[%emt 0:00:08]} Kf7 {[%emt 0:00:05]} 93. Ra5 {[%emt 0:00:30]} Kf6 {[%emt 0:00:47]} 94. Ra6+ {[%emt 0:00:11]} Kf7 {[%emt 0:00:24]} 95. Ra5 {[%emt 0:00:14]} Kf6 {[%emt 0:00:25]} 1/2-1/2

[Event "Azerbaijan Men Championship 2024"]
[Site "Baku"]
[Date "2024.04.12"]
[Round "2.5"]
[White "Gadimbayli, Abdulla"]
[Black "Rasulov, Vugar"]
[Result "1-0"]
[ECO "B47"]
[WhiteElo "2489"]
[BlackElo "2551"]
[Annotator "TA"]
[PlyCount "73"]
[EventDate "2024.04.11"]
[EventType "swiss"]
[EventCountry "AZE"]
[SourceTitle "playchess.com"]
[Source "ChessBase"]
[SourceQuality "1"]
[TimeControl "40/5400+30:1800+30"]

{[%evp 18,73,70,44,45,10,16,21,24,23,22,-27,16,0,50,44,100,103,263,263,375,382,362,342,352,335,319,248,422,229,215,189,209,209,193,205,293,214,366,0,281,0,389,397,427,310,500,483,913,614,658,702,690,683,820,536,512,497]} 1. e4 {[%emt 0:00:12]} c5 {[%emt 0:00:20]} 2. Nf3 {[%emt 0:00:54]} e6 {[%emt 0:00:17]} 3. d4 {[%emt 0:00:21]} cxd4 {[%emt 0:00:17]} 4. Nxd4 {[%emt 0:00:05]} Nc6 {[%emt 0:00:19]} 5. Nc3 {[%emt 0:00:17]} Qc7 {[%emt 0:00:36]} 6. Be2 {[%emt 0:01:15]} a6 {[%emt 0:00:15]} 7. Nxc6 {[%emt 0:01:02] B47: Sicilian: Taimanov: 5 Nc3 Qc7 6 f4, 6 g3 and 6 Be2.} bxc6 {[%emt 0:03:29]} 8. Qd3 {[%emt 0:00:28]} Bd6 {[%emt 0:05:14]} 9. Be3 {[%emt 0:25:29]} Nf6 {[%emt 0:05:01]} 10. O-O-O {[%emt 0:05:11]} Be7 {[%emt 0:00:39]} 11. f4 $146 {[%emt 0:23:58]} ({Predecessor:} 11. Na4 d5 12. Bb6 Qf4+ 13. Be3 Qc7 14. Bb6 Qf4+ 15. Be3 {½-½ Hovhannisyan,R (2630)-Movsesian,S (2637) Reykjavik op 2019 (4)}) 11... d5 {[%emt 0:00:11]} 12. g4 {[%emt 0:00:15]} Rb8 {[%emt 0:04:42]} 13. Rhf1 {[%emt 0:07:11]} O-O {[%emt 0:07:03]} 14. Bd4 {[%emt 0:03:58]} (14. g5 $142 Ne8 15. b3) 14... Qa5 {[%emt 0:02:07]} 15. exd5 {[%emt 0:06:40]} cxd5 {[%emt 0:06:34]} ({Black should try} 15... exd5 $11 16. Qg3 Nd7) 16. f5 {[%emt 0:03:54]} Nd7 {[%emt 0:04:40]} (16... Re8 $14) 17. fxe6 $16 {[%emt 0:02:00]} fxe6 $2 {[%emt 0:09:43] [#]} (17... Bg5+ $16 18. Kb1 fxe6) 18. Qe3 $1 $18 {[%emt 0:06:41]} Nf6 {[%emt 0:01:51]} (18... e5 $142) 19. g5 $18 {[%emt 0:01:32]} Ne4 {[%emt 0:01:28]} 20. Rxf8+ {[%emt 0:00:25]} Bxf8 {[%emt 0:00:06]} 21. Nxe4 {[%emt 0:00:46]} dxe4 {[%emt 0:00:06]} 22. Bc4 {[%emt 0:00:56]} Rb7 $2 {[%emt 0:08:16]} (22... Qc7) 23. h4 {[%emt 0:02:20]} (23. Qxe4 Qxg5+ 24. Kb1 Rf7 $18) (23. Bc3 $142 Bb4 24. Bxb4 (24. Qxe4 Bxc3 25. Bxe6+ Bxe6 $16) 24... Rxb4 25. b3 (25. Qxe4 Qxg5+ 26. Kb1 Qe7 $18)) 23... Qa4 $18 {[%emt 0:02:15]} 24. Bb3 {[%emt 0:01:40]} Qc6 {[%emt 0:00:02]} 25. Re1 {[%emt 0:00:50]} Rf7 {[%emt 0:00:16]} 26. Qxe4 {[%emt 0:00:33]} Qd6 {[%emt 0:00:15]} (26... Qxe4 {was necessary.} 27. Rxe4 Rf1+ 28. Kd2 Bb4+ 29. c3 Bf8 30. Bxe6+ Bxe6) 27. Be5 {[%emt 0:01:38]} (27. Bxe6 Bxe6 28. Qxe6 Qxd4 $17) 27... Qb6 $2 {[%emt 0:01:28]} (27... Qb4 {is a better defense.} 28. Bc4 Bb7) 28. Bd4 {[%emt 0:00:45]} Qd6 $1 {[%emt 0:00:15]} 29. Be5 {[%emt 0:00:12]} ({Stronger than} 29. Bxe6 Bxe6 30. Qxe6 Qxd4 $17) 29... Qb6 $1 {[%emt 0:00:15]} 30. Bc3 {[%emt 0:00:11]} Qf2 {[%emt 0:00:36]} 31. a4 {[%emt 0:02:14]} ({But not} 31. Bxe6 Bxe6 32. Qxe6 Qxh4 $18) 31... Kh8 $2 {[%emt 0:03:29]} (31... Qf4+ 32. Kb1 Qxe4 33. Rxe4 Rf1+ 34. Ka2 Rf5 35. Bxe6+ Bxe6+ 36. Rxe6 a5) 32. Kb1 $18 {[%emt 0:00:56]} ({Weaker is} 32. Bxe6 Bxe6 33. Qxe6 Re7 34. Qxe7 Bxe7 35. Rxe7 Qf1+ 36. Re1 Qf4+ 37. Kb1 Kg8 $11) 32... Bd7 {[%emt 0:00:49]} (32... Qf4 $142 33. Bxe6 Qxe4 34. Rxe4 Bxe6) 33. h5 {[%emt 0:01:01]} Qf4 {[%emt 0:07:24]} 34. Qxf4 {[%emt 0:00:14]} Rxf4 {[%emt 0:00:02]} 35. a5 {[%emt 0:00:05]} Be8 {[%emt 0:02:29]} 36. h6 {[%emt 0:01:12]} Bf7 {[%emt 0:00:37]} 37. Bxe6 {[%emt 0:00:44]} 1-0